bitfinex-derivatives/quotes_BTCF0:USTF0_20210109
["timestamp","ask_amount","ask_price","bid_price","bid_amount"]
[1610183638600,0.28624008,40547.0,40516.0,2.9872]
[1610183638801,0.13632608,40517.0,40516.0,3.10684]
[1610183639002,0.13632608,40517.0,40516.0,0.11964]
[1610183640003,0.00754581,40535.0,40516.0,0.11964]
[1610183640206,0.0734,40537.0,40516.0,0.11964]
[1610183640803,0.0734,40537.0,40523.0,0.13632608]
[1610183641305,0.08095608,40537.0,40523.0,0.13632608]
[1610183642004,0.09591995,40537.0,40523.0,0.13632608]
[1610183642406,0.00756301,40535.0,40523.0,0.13632608]
[1610183642807,0.13632608,40524.0,40523.0,0.13632608]
[1610183643404,0.13632608,40524.0,40516.0,0.11964]
[1610183643805,0.13632608,40524.0,40506.0,3.744]
[1610183644806,0.00757235,40532.0,40506.0,3.744]
[1610183644807,0.02256859,40531.0,40514.0,0.13632608]
[1610183645006,0.02256859,40531.0,40514.0,0.22302608]
[1610183645310,0.00757202,40532.0,40514.0,0.22302608]
[1610183646307,0.00757202,40532.0,40514.0,0.0867]
[1610183646506,0.00757275,40531.0,40514.0,0.0867]
[1610183646908,0.13632608,40515.0,40514.0,0.0867]
[1610183648912,0.13632608,40515.0,40514.0,0.22302608]
[1610183650018,0.13632608,40515.0,40514.0,0.0867]
[1610183650219,0.13632608,40515.0,40490.0,3.8407]
[1610183650619,1.13632608,40515.0,40490.0,3.8407]
[1610183650819,0.13632608,40491.0,40490.0,3.8407]
[1610183651020,0.13632608,40491.0,40486.0,3.8598]
[1610183658234,0.13632608,40491.0,40486.0,3.9341]
[1610183658430,0.13632608,40491.0,40486.0,3.8598]
[1610183659433,0.00757581,40507.0,40474.0,0.13632608]
[1610183659434,0.00757568,40506.0,40474.0,0.13632608]
[1610183659631,0.00757568,40506.0,40496.0,3.4095]
[1610183659832,0.00757489,40512.0,40496.0,3.50405]
[1610183660235,0.0729,40518.0,40496.0,3.50405]
[1610183661036,0.0729,40518.0,40516.0,0.13632608]
[1610183661234,0.0729,40518.0,40516.0,0.24527608]
[1610183661633,0.00311923,40527.0,40516.0,0.24527608]
[1610183662435,0.2783,40528.0,40516.0,0.24527608]
[1610183662634,0.2783,40528.0,40516.0,0.10895]
[1610183663034,0.13632608,40517.0,40516.0,0.10895]
[1610183666335,0.13632608,40517.0,40497.0,3.3296]
[1610183666936,0.00312289,40520.0,40498.0,0.00025831]
[1610183667736,0.01070867,40520.0,40498.0,0.00025831]
[1610183668137,0.00312352,40519.0,40498.0,0.00025831]
[1610183668338,0.00312352,40519.0,40499.0,0.0745]
[1610183668539,0.00312404,40520.0,40499.0,0.0745]
[1610183668739,0.44644033,40523.0,40499.0,0.0745]
[1610183668941,0.44635645,40537.0,40523.0,1.5]
[1610183669137,0.44635645,40537.0,40523.0,1.61133818]
[1610183669337,0.53545356,40550.0,40524.0,0.0742]
[1610183669537,0.53545356,40550.0,40524.0,0.10008636]
[1610183669737,0.53533374,40558.0,40524.0,0.10008636]
[1610183669937,0.53533374,40558.0,40525.0,0.02588179]
[1610183670137,0.53529439,40563.0,40525.0,0.02588179]
[1610183670337,0.53537616,40564.0,40525.0,0.0002581]
[1610183670537,0.53537616,40564.0,40526.0,0.00025808]
[1610183670938,0.0745,40554.0,40525.0,0.00025808]
[1610183671138,0.0745,40554.0,40527.0,0.00025808]
[1610183671342,0.0745,40554.0,40525.0,0.00025808]
[1610183671638,0.0745,40554.0,40528.0,0.00025808]
[1610183671840,0.13632608,40563.0,40528.0,0.00025808]
[1610183671841,0.13632608,40563.0,40529.0,0.075]
[1610183672038,0.53486342,40568.0,40529.0,0.075]
[1610183672239,0.53485744,40569.0,40530.0,0.00025808]
[1610183672741,0.0733,40554.0,40530.0,0.00025808]
[1610183672941,0.0733,40554.0,40553.0,0.13632608]
[1610183673141,0.0733,40554.0,40553.0,0.22120608]
[1610183673342,0.53462991,40571.0,40553.0,3.37660608]
[1610183673742,0.53444775,40572.0,40553.0,3.37660608]
[1610183674942,0.0742,40554.0,40553.0,3.37660608]
[1610183675844,0.13632608,40567.0,40553.0,3.37660608]
[1610183676843,0.0744,40554.0,40553.0,3.37660608]
[1610183677044,0.13632608,40567.0,40553.0,3.37660608]
[1610183678145,0.0733,40554.0,40553.0,3.37660608]
[1610183678546,0.0733,40554.0,40553.0,0.22120608]
[1610183678745,0.0733,40554.0,40553.0,0.08488]
[1610183678946,0.20962608,40554.0,40540.0,0.13632608]
[1610183679347,0.13632608,40554.0,40540.0,0.13632608]
[1610183679746,0.13632608,40554.0,40524.0,2.967]
[1610183680345,0.0736,40553.0,40524.0,2.967]
[1610183680548,0.13632608,40554.0,40518.0,0.0731]
[1610183680748,0.2704,40555.0,40534.0,4.1033]
[1610183680949,0.2704,40555.0,40554.0,0.13632608]
[1610183681550,0.0862,40555.0,40554.0,1.63632608]
[1610183681752,0.0555,40555.0,40554.0,1.63632608]
[1610183682153,0.0504,40555.0,40554.0,0.13632608]
[1610183683153,0.1244,40555.0,40554.0,0.13632608]
[1610183683354,0.0504,40555.0,40554.0,0.13632608]
[1610183688163,0.0504,40555.0,40551.0,0.11672]
[1610183688367,0.0504,40555.0,40549.0,3.0157]
[1610183688766,0.1477,40583.0,40549.0,3.0157]
[1610183688767,0.53198341,40580.0,40550.0,1.5]
[1610183688968,0.53198341,40580.0,40579.0,0.13632608]
[1610183689370,0.53191379,40589.0,40579.0,2.90122608]
[1610183689768,0.53178217,40595.0,40579.0,2.90122608]
[1610183690168,0.61939631,40597.0,40579.0,2.90122608]
[1610183690967,0.13632608,40584.0,40583.0,0.13632608]
[1610183691370,0.53149296,40596.0,40583.0,0.13632608]
[1610183691771,0.08764,40597.0,40583.0,0.13632608]
[1610183691772,0.6189667,40597.0,40583.0,0.13632608]
[1610183692372,0.08764,40597.0,40583.0,0.13632608]
[1610183692572,0.53130655,40598.0,40583.0,0.13632608]
[1610183692772,0.53105728,40601.0,40583.0,0.13632608]
[1610183692971,0.53105728,40601.0,40600.0,0.13632608]
[1610183693172,0.53098742,40606.0,40600.0,0.13632608]
[1610183693773,0.53064447,40607.0,40600.0,0.13632608]
[1610183694174,0.53060811,40610.0,40600.0,0.13632608]
[1610183694576,0.53023642,40612.0,40600.0,0.13632608]
[1610183694974,0.72273401,40615.0,40600.0,0.13632608]
[1610183694975,0.13632608,40601.0,40600.0,0.13632608]
[1610183695376,0.13632608,40601.0,40594.0,3.43973422]
[1610183696577,0.13632608,40601.0,40579.0,0.11115]
[1610183696777,0.13632608,40601.0,40575.0,0.074]
[1610183696978,0.11779,40610.0,40593.0,0.13632608]
[1610183697578,0.00030067,40609.0,40589.0,0.10203]
[1610183698981,0.13632608,40590.0,40589.0,0.10203]
[1610183700183,0.0747,40611.0,40589.0,0.10203]
[1610183700685,0.00030068,40610.0,40589.0,0.10203]
[1610183700884,0.5538,40609.0,40574.0,2.789]
[1610183701083,0.5538,40609.0,40547.0,8.6864]
[1610183701084,0.00030068,40608.0,40524.0,0.0749]
[1610183701283,4.0227,40602.0,40559.0,3.1059]
[1610183701484,0.0728,40601.0,40559.0,3.1059]
[1610183701684,0.13632608,40560.0,40559.0,3.1059]
[1610183702085,0.13632608,40560.0,40558.0,0.13632608]
[1610183702486,0.13632608,40560.0,40548.0,2.9349]
[1610183702685,0.13632608,40560.0,40534.0,0.11307]
[1610183702887,0.13632608,40560.0,40531.0,3.579]
[1610183703487,0.2735,40567.0,40531.0,3.579]
[1610183703688,0.2735,40567.0,40531.0,3.65783]
[1610183703987,0.2735,40567.0,40543.0,0.13632608]
[1610183704186,0.2735,40567.0,40543.0,0.23282608]
[1610183704788,0.2735,40567.0,40543.0,0.0965]
[1610183704988,0.073,40566.0,40543.0,0.0965]
[1610183705388,0.2735,40567.0,40543.0,0.0965]
[1610183705588,0.2735,40567.0,40543.0,2.9111]
[1610183705989,0.2735,40567.0,40554.0,0.13632608]
[1610183706190,0.2735,40567.0,40554.0,0.11555]
[1610183707994,0.13632608,40562.0,40561.0,0.13632608]
[1610183711096,0.08562,40582.0,40567.0,3.3102]
[1610183711295,0.44101731,40590.0,40567.0,3.3102]
[1610183711496,0.44101442,40594.0,40567.0,3.3102]
[1610183711697,0.00030073,40581.0,40567.0,3.3102]
[1610183711897,0.11131,40601.0,40567.0,3.3102]
[1610183711898,0.00030069,40590.0,40567.0,3.3102]
[1610183712096,0.00030069,40590.0,40589.0,0.13632608]
[1610183712299,0.13632608,40599.0,40589.0,0.21893608]
[1610183712696,0.00030064,40598.0,40589.0,0.21893608]
[1610183713097,0.0741,40597.0,40589.0,0.21893608]
[1610183713297,0.00030064,40598.0,40589.0,0.21893608]
[1610183713497,0.00030064,40596.0,40589.0,0.21893608]
[1610183713897,0.00030064,40597.0,40589.0,0.21893608]
[1610183714096,0.13632608,40602.0,40596.0,0.13632608]
[1610183714297,0.21002608,40602.0,40596.0,0.13632608]
[1610183714496,0.00030063,40601.0,40596.0,0.13632608]
[1610183715298,0.13632608,40602.0,40596.0,0.13632608]
[1610183715697,0.5538674,40619.0,40596.0,0.13632608]
[1610183715898,0.1126,40619.0,40596.0,0.13632608]
[1610183716099,0.00030059,40618.0,40610.0,0.13632608]
[1610183716499,0.00030059,40618.0,40589.0,0.08261]
[1610183717503,0.00030059,40618.0,40587.0,3.2619]
[1610183718009,0.13632608,40603.0,40602.0,0.13632608]
[1610183718205,0.21012608,40603.0,40602.0,0.13632608]
[1610183718608,0.13632608,40603.0,40602.0,0.13632608]
[1610183720407,0.1126,40619.0,40602.0,0.13632608]
[1610183720607,0.44254254,40624.0,40602.0,0.21463608]
[1610183720807,0.00030056,40618.0,40602.0,0.21463608]
[1610183721207,0.0744,40617.0,40602.0,0.21463608]
[1610183721407,0.07470056,40617.0,40602.0,0.21463608]
[1610183721607,0.00030056,40616.0,40602.0,0.21463608]
[1610183722008,0.00030056,40616.0,40614.0,0.13632608]
[1610183722209,0.44262523,40625.0,40614.0,0.13632608]
[1610183722811,0.00030054,40624.0,40616.0,3.7771]
[1610183723209,0.44259192,40627.0,40616.0,3.7771]
[1610183723611,0.44244332,40632.0,40616.0,3.29857673]
[1610183723810,0.00030046,40626.0,40616.0,3.29857673]
[1610183724010,0.00030046,40631.0,40616.0,3.37297673]
[1610183724210,0.13662654,40631.0,40625.0,0.13632608]
[1610183724412,0.13632608,40631.0,40625.0,0.13632608]
[1610183724912,0.0737,40630.0,40625.0,0.13632608]
[1610183725113,0.13632608,40631.0,40625.0,0.60442608]
[1610183725712,0.13632608,40631.0,40625.0,0.4681]
[1610183725913,0.13632608,40631.0,40614.0,0.10881]
[1610183726114,0.13632608,40617.0,40614.0,0.10881]
[1610183726915,0.13632608,40617.0,40601.0,3.5167]
[1610183728014,0.13632608,40617.0,40602.0,0.0735]
[1610183728215,0.44358142,40627.0,40614.0,0.13632608]
[1610183729719,0.44358142,40627.0,40611.0,0.09254]
[1610183729920,0.44404886,40625.0,40611.0,0.09254]
[1610183730120,0.44404886,40625.0,40612.0,0.0731]
[1610183730521,0.44398791,40628.0,40613.0,3.6931]
[1610183730921,1.01165015,40633.0,40613.0,3.6931]
[1610183730922,0.44398216,40629.0,40613.0,3.6931]
[1610183731320,0.44397716,40630.0,40613.0,3.6931]
[1610183732121,0.44397716,40630.0,40625.0,0.13632608]
[1610183732925,0.443839,40631.0,40625.0,0.13632608]
[1610183733124,0.443839,40631.0,40613.0,3.6931]
[1610183733526,0.44383874,40630.0,40613.0,3.6931]
[1610183733926,0.44378342,40631.0,40613.0,3.6931]
[1610183734126,0.44378342,40631.0,40626.0,0.13632608]
[1610183734326,0.44378342,40631.0,40613.0,3.6931]
[1610183734726,0.44372912,40630.0,40613.0,3.6931]
[1610183735230,0.44372912,40630.0,40614.0,0.0733]
[1610183735731,0.44372912,40630.0,40613.0,3.6931]
[1610183735931,0.44370302,40631.0,40613.0,3.6931]
[1610183736129,0.44370302,40631.0,40622.0,0.13632608]
[1610183736331,0.44370945,40629.0,40622.0,0.13632608]
[1610183736630,0.44369746,40630.0,40622.0,0.13632608]
[1610183737032,0.44367793,40631.0,40622.0,0.13632608]
[1610183737431,0.44367793,40631.0,40613.0,3.6931]
[1610183737833,0.44361229,40633.0,40613.0,3.6931]
[1610183738035,0.53230519,40635.0,40611.0,0.09254]
[1610183738036,0.44361913,40632.0,40611.0,0.09254]
[1610183738233,0.44361913,40632.0,40613.0,0.13632608]
[1610183738432,0.44361913,40632.0,40613.0,0.21841608]
[1610183739034,0.00030038,40631.0,40614.0,0.00025812]
[1610183739733,0.44400564,40631.0,40614.0,0.00025812]
[1610183740133,0.00030038,40630.0,40623.0,0.13632608]
[1610183740333,0.44368996,40632.0,40623.0,0.13632608]
[1610183740734,0.44368996,40632.0,40624.0,0.00025812]
[1610183741534,0.44401874,40631.0,40623.0,0.13632608]
[1610183741734,0.44401874,40631.0,40625.0,0.00025812]
[1610183741935,0.44401535,40633.0,40624.0,0.00025812]
[1610183742136,0.13632608,40625.0,40624.0,0.00025812]
[1610183742336,0.13632608,40625.0,40615.0,3.0973]
[1610183742536,0.13632608,40625.0,40624.0,0.00025812]
[1610183742735,0.13632608,40625.0,40615.0,3.0973]
[1610183742736,0.13632608,40625.0,40616.0,0.00025812]
[1610183742935,0.13632608,40625.0,40615.0,3.0973]
[1610183743338,0.13632608,40625.0,40617.0,0.00025811]
[1610183743535,0.13632608,40625.0,40616.0,0.00025811]
[1610183743736,0.13632608,40625.0,40618.0,0.00025811]
[1610183744136,0.13632608,40625.0,40624.0,0.13632608]
[1610183744536,0.13632608,40625.0,40624.0,0.13658419]
[1610183747441,0.13632608,40625.0,40624.0,0.21078419]
[1610183747642,0.4439193,40634.0,40624.0,0.21078419]
[1610183748242,0.4439193,40634.0,40633.0,0.13632608]
[1610183748444,0.4439193,40634.0,40625.0,0.00025811]
[1610183749244,0.44407003,40633.0,40625.0,0.00025811]
[1610183749444,0.44407003,40633.0,40623.0,0.00025811]
[1610183749645,0.44440745,40632.0,40626.0,0.00025811]
[1610183749845,0.44440745,40632.0,40624.0,0.00025811]
[1610183750044,0.44410707,40632.0,40627.0,0.00025811]
[1610183750245,0.13632608,40628.0,40627.0,0.13658419]
[1610183750445,0.13632608,40628.0,40627.0,0.13632608]
[1610183750646,0.13632608,40628.0,40627.0,0.13658419]
[1610183756149,0.44413581,40634.0,40627.0,0.13658419]
[1610183756353,0.13632608,40634.0,40633.0,0.13632608]
[1610183756751,0.13632608,40634.0,40633.0,0.13658419]
[1610183757953,0.13662642,40634.0,40633.0,0.13658419]
[1610183758153,0.00030034,40634.0,40633.0,0.13658419]
[1610183758553,0.00030032,40638.0,40633.0,3.14928419]
[1610183758753,0.44393137,40646.0,40633.0,4.64928419]
[1610183759153,0.44381406,40653.0,40634.0,0.02600693]
[1610183759553,0.44363804,40660.0,40634.0,0.02600693]
[1610183759756,0.44363804,40660.0,40634.0,1.52600693]
[1610183759955,0.4435545,40661.0,40634.0,1.50025799]
[1610183760156,0.4435545,40661.0,40635.0,0.00025799]
[1610183760356,0.44356114,40662.0,40660.0,0.13632608]
[1610183760956,0.4435635,40661.0,40654.0,0.07232]
[1610183761356,0.44338153,40660.0,40654.0,0.07232]
[1610183762160,0.44324937,40661.0,40654.0,0.07232]
[1610183762360,0.44324937,40661.0,40660.0,0.13632608]
[1610183762561,0.44315032,40663.0,40660.0,0.13632608]
[1610183762961,0.44315015,40667.0,40660.0,0.13632608]
[1610183763364,0.44314286,40669.0,40660.0,0.13632608]
[1610183763963,0.44314286,40669.0,40661.0,0.0743]
[1610183764166,0.44312037,40670.0,40668.0,3.3412]
[1610183764365,0.39002037,40670.0,40668.0,3.3412]
[1610183764564,0.5317247,40678.0,40668.0,3.3412]
[1610183764965,0.5316856,40682.0,40677.0,0.13632608]
[1610183765364,0.73839481,40689.0,40677.0,0.13632608]
[1610183765365,0.53166124,40686.0,40677.0,0.13632608]
[1610183765564,0.53166124,40686.0,40684.0,2.8441]
[1610183765766,0.53156671,40688.0,40677.0,0.13632608]
[1610183765964,0.53156671,40688.0,40684.0,4.0079]
[1610183766265,0.5315704,40689.0,40684.0,4.0079]
[1610183766667,0.53152406,40691.0,40685.0,0.0743]
[1610183767065,0.47557319,40694.0,40693.0,3.0722]
[1610183767264,0.27467319,40694.0,40693.0,3.0722]
[1610183767465,0.64902992,40709.0,40693.0,3.20852608]
[1610183767666,0.58112992,40709.0,40693.0,3.20852608]
[1610183767868,0.35987086,40714.0,40694.0,0.00026314]
[1610183768066,0.21697086,40714.0,40694.0,0.00026314]
[1610183768267,0.73716759,40728.0,40694.0,0.00026314]
[1610183768467,1.29730293,40744.0,40694.0,0.00026314]
[1610183768468,0.73645776,40733.0,40694.0,0.00026314]
[1610183768666,0.73645776,40733.0,40693.0,3.28122608]
[1610183768869,0.14823369,40715.0,40693.0,0.20902608]
[1610183769068,0.14823369,40715.0,40693.0,3.53222608]
[1610183769468,0.14823369,40715.0,40714.0,0.13632608]
[1610183772771,0.07073369,40715.0,40714.0,0.66252608]
[1610183773772,0.73226882,40753.0,40714.0,0.66252608]
[1610183774575,0.3596914,40753.0,40714.0,0.66252608]
[1610183774772,0.3596914,40753.0,40714.0,0.5262]
[1610183774973,0.35966445,40752.0,40714.0,0.5262]
[1610183775175,0.47064445,40752.0,40715.0,0.0726]
[1610183775372,0.11098,40752.0,40715.0,0.0726]
[1610183776173,0.13632608,40740.0,40739.0,0.13632608]
[1610183776372,0.21099608,40740.0,40739.0,0.13632608]
[1610183776572,0.21099608,40740.0,36113.0,0.04757955]
[1610183776773,0.21099608,40740.0,40693.0,3.48915]
[1610183777174,0.5792,40739.0,40693.0,3.4106]
[1610183777373,0.21099608,40740.0,40660.0,0.0742]
[1610183777572,3.2239,40737.0,40669.0,3.7146]
[1610183778174,0.13632608,40697.0,40693.0,0.13632608]
[1610183778778,0.10049,40699.0,40693.0,0.13632608]
[1610183778977,0.10049,40699.0,40694.0,0.0729]
[1610183779178,0.10049,40699.0,40693.0,0.13632608]
[1610183779779,0.10049,40699.0,40688.0,0.073]
[1610183780177,0.10049,40699.0,40698.0,0.13632608]
[1610183780377,0.02609,40699.0,40698.0,0.21042608]
[1610183780577,9e-05,40699.0,40698.0,0.21042608]
[1610183780778,0.2722,40735.0,40698.0,0.21042608]
[1610183781380,0.2845,40751.0,40698.0,0.21042608]
[1610183781780,0.2995,40749.0,40698.0,0.21042608]
[1610183782182,0.13632608,40723.0,40721.0,0.13632608]
[1610183782386,0.25253608,40723.0,40721.0,0.13632608]
[1610183783483,0.00029978,40722.0,40721.0,0.13632608]
[1610183783681,0.00029978,40722.0,40694.0,3.2816]
[1610183784284,0.13632608,40712.0,40694.0,3.2816]
[1610183784886,0.00029982,40711.0,40694.0,3.2816]
[1610183785084,0.00029982,40711.0,40694.0,3.175]
[1610183785683,0.00029982,40713.0,40694.0,3.175]
[1610183786284,0.00029982,40713.0,40712.0,0.13632608]
[1610183787286,0.11113,40714.0,40712.0,0.13632608]
[1610183788088,0.0002998,40713.0,40712.0,0.13632608]
[1610183789890,0.02267686,40713.0,40712.0,0.13632608]
[1610183792700,0.02267686,40713.0,40679.0,3.3894]
[1610183793298,0.02267686,40713.0,40651.0,0.0747]
[1610183793498,3.2519,40712.0,40651.0,0.0747]
[1610183793898,0.08278993,40711.0,40651.0,0.0747]
[1610183794298,0.08278993,40711.0,40678.0,0.13632608]
[1610183795100,0.0725,40710.0,40678.0,0.13632608]
[1610183795301,0.08278993,40711.0,40678.0,0.13632608]
[1610183795500,0.0229239,40709.0,40678.0,0.13632608]
[1610183795700,0.02262394,40709.0,40678.0,0.13632608]
[1610183795900,0.02292507,40710.0,40678.0,0.13632608]
[1610183796101,0.02292388,40708.0,40678.0,0.13632608]
[1610183796300,0.13632608,40679.0,40678.0,0.13632608]
[1610183796501,0.13662604,40679.0,40678.0,0.13632608]
[1610183796902,0.13662604,40679.0,40659.0,0.1202]
[1610183797102,0.13662604,40679.0,40650.0,0.10399]
[1610183797300,0.0003,40678.0,40650.0,0.10399]
[1610183798103,0.02324711,40678.0,40650.0,0.10399]
[1610183798302,0.13632608,40651.0,40650.0,0.10399]
[1610183798703,0.10227,40668.0,40650.0,0.10399]
[1610183798904,0.00030008,40667.0,40650.0,0.10399]
[1610183799505,0.00030008,40667.0,40646.0,0.13632608]
[1610183800306,0.00030008,40667.0,40659.0,0.13632608]
[1610183801307,0.3005,40682.0,40659.0,0.22786608]
[1610183801906,0.00030003,40681.0,40659.0,0.22786608]
[1610183802308,0.00030003,40681.0,40659.0,0.09154]
[1610183802708,0.00030003,40688.0,40659.0,0.09154]
[1610183802921,0.00030005,40680.0,40659.0,0.09154]
[1610183803110,0.09401,40680.0,40651.0,3.4225]
[1610183803508,0.00030005,40679.0,40651.0,3.4225]
[1610183803907,0.08582,40689.0,40651.0,3.4225]
[1610183804108,0.08582,40689.0,40651.0,4.9225]
[1610183804308,0.00030001,40688.0,40651.0,4.9225]
[1610183804508,0.08498,40698.0,40651.0,4.9225]
[1610183805211,0.08498,40698.0,40651.0,3.4225]
[1610183805409,0.2791,40713.0,40651.0,3.4225]
[1610183805909,0.00029994,40710.0,40651.0,4.9225]
[1610183806316,0.00029994,40710.0,40709.0,0.13632608]
[1610183806510,0.00029994,40710.0,40685.0,0.08427]
[1610183806910,0.00029994,40712.0,40685.0,0.08427]
[1610183807712,0.00029994,40712.0,40682.0,2.7886]
[1610183808313,0.13632608,40699.0,40694.0,0.13632608]
[1610183808512,0.21789608,40699.0,40694.0,0.13632608]
[1610183808712,0.00029996,40698.0,40694.0,0.13632608]
[1610183809215,0.13632608,40699.0,40694.0,0.13632608]
[1610183810217,0.13632608,40707.0,40694.0,0.13632608]
[1610183810818,0.00029996,40706.0,40694.0,0.13632608]
[1610183811816,0.00029996,40706.0,40667.0,0.11873]
[1610183812416,0.00029996,40706.0,40678.0,0.13632608]
[1610183812617,0.01482354,40708.0,40667.0,0.11873]
[1610183812816,0.01482354,40708.0,40633.0,0.2727]
[1610183813017,0.01512345,40705.0,40634.0,1.5]
[1610183813218,0.12130349,40705.0,40664.0,0.00025875]
[1610183813420,0.12130349,40705.0,40664.0,0.09599875]
[1610183813619,0.01483749,40703.0,40664.0,0.09599875]
[1610183813817,0.01483749,40703.0,40665.0,0.00025875]
[1610183814019,0.01483717,40704.0,40665.0,0.00025875]
[1610183814219,0.13632608,40690.0,40682.0,0.13632608]
[1610183814420,0.22151608,40690.0,40682.0,0.13632608]
[1610183815120,0.22151608,40690.0,40664.0,0.09574]
[1610183815620,0.22151608,40690.0,40665.0,0.00025876]
[1610183816419,0.08519,40690.0,40676.0,0.13632608]
[1610183817019,0.08519,40690.0,40664.0,0.09574]
[1610183817621,0.08519,40690.0,40665.0,0.00025827]
[1610183818422,0.13632608,40666.0,40665.0,0.00025827]
[1610183819021,0.08519,40690.0,40665.0,0.00025827]
[1610183819221,0.30142037,40689.0,40665.0,0.00025827]
[1610183819823,0.2865,40689.0,40665.0,0.00025827]
[1610183820423,0.2865,40689.0,40679.0,0.13632608]
[1610183820823,0.2865,40689.0,40680.0,0.00025827]
[1610183822124,0.2865,40689.0,40665.0,0.00025827]
[1610183822326,0.13632608,40682.0,40681.0,0.13632608]
[1610183822726,0.13632608,40682.0,40681.0,0.13658432]
[1610183823129,0.13632608,40682.0,40681.0,0.00025824]
[1610183823527,0.13632608,40682.0,40668.0,0.0735]
[1610183823726,0.08519,40690.0,40669.0,0.00025822]
[1610183823930,0.01496081,40693.0,40669.0,0.00025822]
[1610183824328,0.01496081,40693.0,40692.0,0.13632608]
[1610183824528,0.01496763,40697.0,40692.0,0.13632608]
[1610183824729,0.40117908,40698.0,40692.0,0.13632608]
[1610183825129,0.38621189,40698.0,40693.0,0.00025817]
[1610183825329,0.38621189,40698.0,40692.0,0.13632608]
[1610183825929,0.45980829,40697.0,40692.0,0.13632608]
[1610183826330,0.13632608,40694.0,40692.0,0.13632608]
[1610183826930,0.40118388,40698.0,40693.0,0.00025816]
[1610183827131,0.38621189,40698.0,40693.0,0.00025816]
[1610183828333,0.13632608,40694.0,40693.0,0.00025816]
[1610183829034,0.13632608,40694.0,40692.0,0.13632608]
[1610183829733,0.13632608,40694.0,40673.0,0.11574]
[1610183829934,0.13632608,40694.0,40664.0,0.09574]
[1610183830133,0.13632608,40694.0,40674.0,0.00025828]
[1610183830333,0.00029999,40693.0,40685.0,0.13632608]
[1610183830734,0.44513089,40686.0,40685.0,0.13632608]
[1610183831536,0.4601108,40686.0,40685.0,0.13632608]
[1610183831936,0.44513089,40686.0,40685.0,0.13632608]
[1610183832436,0.44513089,40686.0,40685.0,0.13658442]
[1610183832837,0.2936,40713.0,40685.0,0.13658442]
[1610183832838,0.46000481,40694.0,40685.0,0.13658442]
[1610183833036,0.46000481,40694.0,40685.0,0.25013442]
[1610183833237,0.46000481,40694.0,40686.0,0.00025829]
[1610183833437,0.01497593,40697.0,40686.0,0.00025829]
[1610183834140,0.0149787,40696.0,40686.0,0.00025829]
[1610183834338,0.0149787,40696.0,40695.0,0.13632608]
[1610183834538,0.01498281,40697.0,40695.0,0.13632608]
[1610183834738,0.01498281,40697.0,40686.0,0.00025829]
[1610183834938,0.44518272,40696.0,40685.0,0.11355]
[1610183835137,0.44518272,40696.0,40687.0,0.00025827]
[1610183835338,0.01498315,40694.0,40686.0,0.00025827]
[1610183835738,0.44542326,40693.0,40686.0,0.00025827]
[1610183836138,0.01499081,40693.0,40686.0,0.00025827]
[1610183836338,0.01499081,40693.0,40692.0,0.13632608]
[1610183836537,0.44565069,40693.0,40692.0,0.13632608]
[1610183836739,0.98036419,40695.0,40692.0,0.13632608]
[1610183836938,0.01499731,40694.0,40692.0,0.13658437]
[1610183837138,0.46061044,40695.0,40692.0,0.13658437]
[1610183837338,0.46061044,40695.0,40693.0,0.00025829]
[1610183837538,0.92092044,40698.0,40693.0,0.00025829]
[1610183837539,0.01500222,40696.0,40693.0,0.00025829]
[1610183838039,0.01500177,40695.0,40693.0,0.00025829]
[1610183838239,0.01500177,40695.0,40686.0,0.00025829]
[1610183838440,0.46074462,40695.0,40691.0,0.13632608]
[1610183838640,0.46074462,40695.0,40694.0,0.00025829]
[1610183838841,0.46074462,40695.0,40685.0,0.11355]
[1610183838842,0.46078416,40693.0,40692.0,0.00025827]
[1610183839041,0.46078416,40693.0,40685.0,0.11355]
[1610183839243,0.46078416,40693.0,40674.0,0.10638]
[1610183839442,0.98102398,40693.0,40692.0,0.00025829]
[1610183839842,0.98102398,40693.0,40692.0,0.0005166]
[1610183840243,0.98102398,40693.0,40683.0,0.00025832]
[1610183840443,0.98102398,40693.0,40684.0,0.13632608]
[1610183840645,0.00029999,40692.0,40684.0,0.1365839]
[1610183840844,0.00029999,40692.0,40684.0,0.00025782]
[1610183841045,0.00029999,40692.0,40673.0,0.08859]
[1610183841046,0.01500768,40686.0,40685.0,0.00025782]
[1610183841546,0.44600539,40686.0,40674.0,0.00025782]
[1610183841746,0.44600539,40686.0,40685.0,0.00025782]
[1610183841947,0.44600539,40686.0,40674.0,0.00025782]
[1610183842249,0.44600539,40686.0,40685.0,0.0002622]
[1610183842449,0.58233147,40686.0,40675.0,0.0002622]
[1610183842848,0.58233147,40686.0,40674.0,0.0002622]
[1610183843062,0.01501548,40685.0,40676.0,0.00026168]
[1610183843252,0.01501548,40685.0,40675.0,0.00026168]
[1610183843652,0.01501548,40685.0,40677.0,0.00026168]
[1610183843852,0.01501548,40685.0,40676.0,0.00026168]
[1610183844051,0.01501548,40685.0,40678.0,0.00026168]
[1610183844451,0.01501548,40685.0,40677.0,0.00026168]
[1610183844652,0.01502387,40684.0,40679.0,0.00026168]
[1610183844851,0.01502387,40684.0,40678.0,0.00026168]
[1610183845052,0.01502406,40683.0,40678.0,0.00026168]
[1610183845253,0.01502406,40683.0,40680.0,0.00026168]
[1610183845453,0.01502406,40683.0,40679.0,0.00026168]
[1610183845652,0.01502406,40683.0,40681.0,0.00026168]
[1610183845855,0.0150281,40682.0,40681.0,0.00026168]
[1610183846052,0.0150281,40682.0,40680.0,0.00026168]
[1610183846253,0.0150281,40682.0,40681.0,0.00026168]
[1610183846453,0.15135418,40682.0,40681.0,0.13658776]
[1610183846855,0.15135418,40682.0,40674.0,0.0002617]
[1610183847053,0.15135418,40682.0,40681.0,0.0002617]
[1610183847454,0.15135418,40682.0,40674.0,0.0002617]
[1610183847655,0.58316566,40682.0,40674.0,0.0002617]
[1610183847855,0.58316566,40682.0,40681.0,0.0002617]
[1610183848054,0.58316566,40682.0,40675.0,0.00026172]
[1610183848254,0.5834657,40682.0,40681.0,0.00026172]
[1610183848454,0.13662612,40682.0,40681.0,0.00026172]
[1610183848655,0.13662612,40682.0,40675.0,0.13632608]
[1610183848855,1.48010972,40682.0,40681.0,0.00026172]
[1610183849055,1.47980968,40682.0,40676.0,0.00026172]
[1610183849256,0.44703686,40678.0,40676.0,0.00026172]
[1610183849457,0.44703686,40678.0,40675.0,0.13632608]
[1610183849656,0.53658739,40679.0,40677.0,0.00026172]
[1610183849855,0.53658739,40679.0,40676.0,0.00026172]
[1610183850056,0.36003513,40681.0,40676.0,0.00026172]
[1610183850057,1.34379555,40678.0,40676.0,0.00026172]
[1610183850256,1.34379555,40678.0,40673.0,0.08859]
[1610183850456,0.89661606,40678.0,40677.0,0.00026172]